Cogmind - Beta 11.1 @@@ ROGUE MODE // 2022.05.13 @ 16:54:28 Player: Decinym Result: Destroyed by 1C-UTU with 1C-UTU's Sword "Choppy" Performance ------------- Evolutions (1) 500 Regions Visited (6) 1200 Robots Destroyed (69) 345 Value Destroyed (1504) 1504 Prototype IDs (39) 780 Alien Tech Used (0) 0 Bonus (332) 332 TOTAL SCORE: 4661 Bonus ------- High Alert Combat Kills 32 Aligned with FarCom 300 Cogmind --------- Core Integrity 0/400 Matter 300/300 Energy 96/100 System Corruption 0% Temperature Cool (4) Movement Core (1450) Ox28 Location -8/Mines Parts ------- > --- POWER (1) -------- (None) > --- PROPULSION (3) --- (None) > --- UTILITY (3) ------ Huge Storage Unit > --- WEAPON (2) ------- Advanced Beam Cannon Heavy Assault Rifle > --- INVENTORY (25) --- Improved Ion Engine Nuclear Core Reinforced Fission Core Light Treads Light Treads Advanced Myomer Leg Superbattery (1500) Makeshift Terrain Scanner Advanced Transmission Jammer Supersonic Drone Bay (1/1) Light EM Pulse Cannon Light EM Pulse Cannon Light Assault Rifle Light Assault Rifle Light Cannon Grenade Launcher Grenade Launcher Rocket Launcher Datajack Powered Hammer Peak State ------------ > --- POWER ------------ Improved Ion Engine > --- PROPULSION ------- Light Treads Light Treads Light Treads > --- UTILITY ---------- Huge Storage Unit Layered Light Armor Plating Shield Generator > --- WEAPON ----------- Heavy Assault Rifle Gauss Rifle > --- INVENTORY -------- Improved Ion Engine Improved Ion Engine Nuclear Core Light Treads Light Treads Light Treads Light Treads Light Armor Plating Shield Generator Light EM Pulse Cannon Light EM Pulse Cannon Advanced Beam Cannon Light Assault Rifle Light Assault Rifle Heavy Assault Rifle Light Cannon Grenade Launcher Grenade Launcher Rocket Launcher Powered Hammer [Rating: 21] Favorites ----------- Power Improved Ion Engine Engine Improved Ion Engine Propulsion Light Treads Treads Light Treads Leg Aluminum Leg Utility Huge Storage Unit Device Shield Generator Storage Huge Storage Unit Processor Targeting Computer Protection Light Armor Plating Weapon Light EM Pulse Cannon Energy Gun Small Laser Energy Cannon Light EM Pulse Cannon Ballistic Gun Heavy Assault Rifle Ballistic Cannon Light Cannon Launcher Grenade Launcher Impact Weapon Powered Hammer Special Melee Weapon Datajack Build | -11 -10 -10 -9 -9 -9 -8 ------- Run | Scr Mat Min Mat Min Exi Min Slots Evolved 2 | . . . 2 . . . Power . | . . . . . . . Propulsion 1 | . . . 1 . . . Utility 1 | . . . 1 . . . Weapon . | . . . . . . . Parts Attached 85 | . 19 6 37 3 19 1 Power 5 | . 1 1 2 . 1 . Engine 5 | . 1 1 2 . 1 . Core . | . . . . . . . Reactor . | . . . . . . . Propulsion 22 | . 5 1 10 2 4 . Treads 20 | . 3 1 10 2 4 . Leg 2 | . 2 . . . . . Wheel . | . . . . . . . Hover . | . . . . . . . Flight . | . . . . . . . Utility 15 | . 2 . 5 1 6 1 Device 3 | . . . . 1 2 . Storage 5 | . 1 . 2 . 2 . Processor 1 | . 1 . . . . . Hackware . | . . . . . . . Protection 6 | . . . 3 . 2 1 Artifact . | . . . . . . . Weapon 43 | . 11 4 20 . 8 . Energy Gun 1 | . 1 . . . . . Energy Cannon 11 | . 7 . 2 . 2 . Ballistic Gun 14 | . . . 10 . 4 . Ballistic Cannon 3 | . . 3 . . . . Launcher 11 | . 3 1 7 . . . Special Weapon . | . . . . . . . Impact Weapon 2 | . . . 1 . 1 . Slashing Weapon . | . . . . . . . Piercing Weapon . | . . . . . . . Special Melee Weapon 1 | . . . . . 1 . Unidentified Prototypes . | . . . . . . . Corrupted Parts 2 | . 2 . . . . . System Corruption 7 | . 7 . . . . . Parts Lost 19 | . 1 2 . . 11 5 Power 4 | . 1 1 . . 1 1 Propulsion 7 | . . . . . 4 3 Utility 5 | . . . . . 4 1 Weapon 3 | . . 1 . . 2 . Highest Loss Streak 5 | . 1 1 . . 4 5 To Critical Strikes 6 | . . . . . 6 . Average Slot Usage (%) 94 | . 98 99 96 100 90 81 Engine 11 | . 13 14 10 11 11 9 Treads 28 | . 8 28 32 33 32 29 Leg 2 | . 19 . . . . . Device 3 | . . . . 8 6 . Storage 12 | . 16 14 11 11 11 11 Processor 5 | . 10 14 11 2 . . Protection 5 | . . . 8 11 6 9 Energy Cannon 12 | . 27 14 4 22 9 11 Ballistic Gun 6 | . . . 13 . 7 11 Ballistic Cannon 1 | . . 13 1 . . . Impact Weapon 1 | . . . . . 3 . Naked Turns . | . . . . . . . Heaviest Build 101 | 13 38 31 98 100 101 97 Greatest Support 60 | 20 40 40 60 60 60 60 Greatest Overweight (x) 4 | . 1 . 2 1 1 4 Average Overweight (x) . | . . . . 1 1 1 Largest Inventory Capacity 25 | . 15 15 25 25 25 25 Average Capacity 21 | . 14 15 22 25 25 25 Most Carried 25 | . 15 15 25 25 25 21 Average Carried 18 | . 11 14 20 23 20 20 Final Capacity 25 | 8 15 15 25 25 25 25 Final Carried 25 | 6 15 14 25 23 22 20 Class Distribution -------------------- 55% | Mutant 44% | Scavenger-Mutant Dominant Class ---------------- Mutant | -10/Materials Mutant | -10/Mines Scavenger-Mutant | -9/Materials Scavenger-Mutant | -9/Mines Scavenger-Mutant | -9/Exiles Mutant | -8/Mines Resources | -11 -10 -10 -9 -9 -9 -8 ----------- Run | Scr Mat Min Mat Min Exi Min Matter Collected 1723 | 200 266 228 650 . 376 3 Remotely . | . . . . . . . Salvage Created 2110 | . 469 320 1046 . 275 . Parts 133 | . 28 17 77 . 11 . Haulers Intercepted 4 | . 1 . 3 . . . Recyclers Shooed 2 | . 1 . 1 . . . Parts Field Recycled . | . . . . . . . Retrieved Matter . | . . . . . . . Parts Self-Destructed . | . . . . . . . Prevented . | . . . . . . . Kills | -11 -10 -10 -9 -9 -9 -8 ------- Run | Scr Mat Min Mat Min Exi Min Combat Hostiles Destroyed 54 | . 16 12 24 . 2 . Guns 8 | . . . 6 . 2 . Cannons 12 | . 6 5 1 . . . AOE 33 | . 10 6 17 . . . Classes Destroyed 10 | . 5 . 3 . 2 . Worker 3 | . 1 1 1 . . . Hauler 4 | . 1 . 3 . . . Recycler 4 | . . . 4 . . . Watcher 4 | . 1 . 3 . . . Swarmer 23 | . 9 6 8 . . . Grunt 22 | . 7 6 9 . . . Brawler 2 | . . . 2 . . . Sentry 5 | . . . 5 . . . Zionite 1 | . . . . . 1 . Assembled 1 | . . . . . 1 . Best Kill Streak 14 | . 5 6 14 . 1 . Combat Bots Only 10 | . 5 6 10 . 1 . Max Kills in Single Turn 4 | . 3 2 4 . 1 . Gunslinging . | . . . . . . . Exploded 4 | . 2 2 4 . . . Melee . | . . . . . . . Uniques/NPCs Destroyed 4 | . . . . . 4 . EX-DEC (-9/Exiles) EX-HEX (-9/Exiles) EX-BIN (-9/Exiles) 8R-AWN (-9/Exiles) Combat | -11 -10 -10 -9 -9 -9 -8 -------- Run | Scr Mat Min Mat Min Exi Min Damage Taken 3565 | . 411 402 462 . 1585 705 Core 588 | . 101 73 51 . 207 156 Absorbed by Shields 404 | . . . . . 404 . Core Remaining (%) 65 | 100 . 30 . . . . Volleys Fired 166 | . 25 22 59 . 56 4 Largest 2 | . 2 2 2 . 2 2 Hottest 112 | . 112 112 112 . 91 91 Shots Fired 294 | . 44 38 97 . 107 8 Gun 161 | . . . 66 . 91 4 Cannon 106 | . 37 34 15 . 16 4 Launcher 27 | . 7 4 16 . . . Special . | . . . . . . . Kinetic 184 | . . 16 73 . 91 4 Thermal 12 | . . . . . 8 4 Explosive 27 | . 7 4 16 . . . Electromagnetic 71 | . 37 18 8 . 8 . Robot Hit Streak 13 | . 10 9 11 . 13 6 Robot Miss Streak 4 | . 4 3 3 . 4 1 Penetration Max . | . . . . . . . Secondary Targets . | . . . . . . . Shots Hit Robots 215 | . 23 24 68 . 93 7 Core Hits 111 | . 19 16 55 . 18 3 Critical Kills . | . . . . . . . Critical Parts Destroyed 3 | . . . . . 3 . Critical Strikes 8 | . . 3 . . 5 . Destroy 3 | . . . . . 3 . Blast 1 | . . 1 . . . . Corrupt 2 | . . 2 . . . . Smash 2 | . . . . . 2 . Melee Attacks 17 | . . . . . 17 . Impact 13 | . . . . . 13 . Slashing . | . . . . . . . Piercing . | . . . . . . . Sneak Attacks 4 | . . . . . 4 . Combat Hostiles . | . . . . . . . Follow-up Attacks . | . . . . . . . Damage Inflicted 6235 | . 1091 840 2116 . 2063 125 Guns 1687 | . . . 547 . 1098 42 Cannons 1448 | . 501 479 293 . 92 83 Explosions 2224 | . 587 361 1276 . . . Melee 694 | . . . . . 694 . Ramming 182 | . 3 . . . 179 . Kinetic 1967 | . . 170 657 . 1098 42 Thermal 296 | . 69 64 . . 80 83 Explosive 2091 | . 518 297 1276 . . . Electromagnetic 1005 | . 501 309 183 . 12 . Impact 694 | . . . . . 694 . Slashing . | . . . . . . . Piercing . | . . . . . . . Highest Corruption 7 | . 7 7 . . . . Average Corruption 6 | . 6 7 . . . . Corruption Purged . | . . . . . . . Corruption Blocked . | . . . . . . . Effects 57 | . 28 29 . . . . Message Errors 19 | . 10 9 . . . . Matter Fused 13 | . 8 5 . . . . Heat Flow Errors 4 | . 1 3 . . . . Energy Discharges 4 | . 3 1 . . . . Parts Rejected 1 | . . 1 . . . . Data Loss (minor) 6 | . 3 3 . . . . Data Loss (major) 4 | . 2 2 . . . . Misfires 4 | . 1 3 . . . . Alerts 1 | . . 1 . . . . Weapon Failures 1 | . . 1 . . . . Overload Shots . | . . . . . . . Overflow Damage 492 | . 52 51 47 . 342 . Projectiles 37 | . 34 . 3 . . . Explosions 113 | . 18 51 44 . . . Melee 342 | . . . . . 342 . Knockbacks 6 | . . 2 2 . 2 . Impact 2 | . . . . . 2 . Kinetic 4 | . . 2 2 . . . Secondary . | . . . . . . . Self-Inflicted Damage 349 | . 170 110 69 . . . Shots 11 | . 5 3 3 . . . Rammed 38 | . 1 . . . 37 . Targets Rammed 39 | . 2 . . . 37 . Kicked 1 | . 1 . . . . . Crushed . | . . . . . . . Highest Temperature 281 | . 204 281 108 . 130 84 Average Temperature 54 | . 59 94 13 . 41 38 Received Heat Transfer 270 | . 30 144 96 . . . Effects 1 | . . 1 . . . . Energy Bleed 1 | . . 1 . . . . Siege Activations . | . . . . . . . Robots Corrupted 1 | . . 1 . . . . Combat Hostiles 1 | . . 1 . . . . Parts Fried 8 | . 3 3 . . 2 . Impact Corruptions 10 | . . . . . 10 . Robots Melted . | . . . . . . . Combat Hostiles . | . . . . . . . Parts Melted . | . . . . . . . Heat Transferred 384 | . 100 100 . . 148 36 Parts Sabotaged . | . . . . . . . Parts Stolen . | . . . . . . . Parts Stripped . | . . . . . . . Power Chain Reactions 5 | . 2 3 . . . . Missiles Intercepted . | . . . . . . . Alert | -11 -10 -10 -9 -9 -9 -8 ------- Run | Scr Mat Min Mat Min Exi Min Peak Influence 509 | . 412 422 509 198 . . Initial 198 | . . 149 78 198 . . Average 263 | . 248 273 295 198 . . Maximum Alert Level 2 | . 2 2 2 . . . Low Security (%) 27 | . 23 2 34 100 . 100 Level 1 59 | . 73 82 41 . . . Level 2 12 | . 2 14 23 . . . Level 3 . | . . . . . . . Level 4 . | . . . . . . . Level 5 . | . . . . . . . High Security . | . . . . . . . Max Security . | . . . . . . . Squads Dispatched 4 | . 3 . 1 . . . Investigation 1 | . 1 . . . . . Extermination . | . . . . . . . Reinforcement 3 | . 2 . 1 . . . Assault . | . . . . . . . Garrison . | . . . . . . . Intercept . | . . . . . . . Searches Triggered . | . . . . . . . Construction Impeded . | . . . . . . . Haulers Reinforced . | . . . . . . . Active Scanning Responses . | . . . . . . . Cargo Convoy Interrupts . | . . . . . . . Stealth | -11 -10 -10 -9 -9 -9 -8 --------- Run | Scr Mat Min Mat Min Exi Min Distress Signals 5 | . . . 5 . . . Communications Jammed . | . . . . . . . Distress Signals . | . . . . . . . Times Spotted 88 | . 22 12 29 . 24 1 Peak Tracking Total 9 | . 4 6 5 . 9 1 Tactical Retreats 14 | . 1 . . . 13 . Traps | -11 -10 -10 -9 -9 -9 -8 ------- Run | Scr Mat Min Mat Min Exi Min Traps Triggered 6 | . 4 . 2 . . . Indirectly . | . . . . . . . Trap Hack Attempts . | . . . . . . . Triggered . | . . . . . . . Disarmed 4 | . 4 . . . . . Reprogrammed . | . . . . . . . Reused . | . . . . . . . Traps Extracted . | . . . . . . . Installed . | . . . . . . . Triggered . | . . . . . . . Exploded 1 | . . . . . 1 . Machines | -11 -10 -10 -9 -9 -9 -8 ---------- Run | Scr Mat Min Mat Min Exi Min Machines Disabled 13 | . 6 . 2 . 5 . Max in Single Turn 2 | . 2 . 1 . 1 . Machines Sabotaged . | . . . . . . . Garrisons Compromised . | . . . . . . . Overloaded Fab Kills . | . . . . . . . Hacking | -11 -10 -10 -9 -9 -9 -8 --------- Run | Scr Mat Min Mat Min Exi Min Machines Accessed 8 | . 4 . 1 1 2 . Terminals 5 | . 4 . 1 . . . Fabricators . | . . . . . . . Repair Stations . | . . . . . . . Recycling Units . | . . . . . . . Scanalyzers . | . . . . . . . Garrison Access . | . . . . . . . Total Hacks 16 | . 10 . 3 1 2 . Successful 9 | . 4 . 2 1 2 . Failed 7 | . 6 . 1 . . . Catastrophic 4 | . 4 . . . . . Database Lockouts . | . . . . . . . Manual 7 | . 5 . 1 . 1 . Terminals 13 | . 10 . 3 . . . Fabricators . | . . . . . . . Repair Stations . | . . . . . . . Recycling Units . | . . . . . . . Scanalyzers . | . . . . . . . Garrison Access . | . . . . . . . Terminal Hacks 9 | . 4 . 2 1 2 . Record 1 | . . . . . 1 . Robot Analysis 1 | . 1 . . . . . Prototype ID Bank 1 | . 1 . . . . . Open Door 1 | . . . . 1 . . Branch Access Points 1 | . . . 1 . . . Unreport Threat 1 | . . . 1 . . . Disarm Traps 1 | . 1 . . . . . Hauler Manifests 1 | . 1 . . . . . EX-Prototype ID Bank 1 | . . . . . 1 . Fabricator Hacks . | . . . . . . . Repair Station Hacks . | . . . . . . . Recycling Unit Hacks . | . . . . . . . Scanalyzer . | . . . . . . . Garrison Access Hacks . | . . . . . . . Unauthorized Hacks . | . . . . . . . Terminals . | . . . . . . . Fabricators . | . . . . . . . Repair Stations . | . . . . . . . Recycling Units . | . . . . . . . Scanalyzers . | . . . . . . . Garrison Access . | . . . . . . . Data Cores Recovered . | . . . . . . . Used . | . . . . . . . Hacking Detections 5 | . 4 . 1 . . . Full Trace Events 1 | . 1 . . . . . Feedback Events . | . . . . . . . Feedback Blocked . | . . . . . . . Robot Schematics Acquired . | . . . . . . . Robots Built . | . . . . . . . Authchips . | . . . . . . . Time . | . . . . . . . Total Robot Build Rating . | . . . . . . . Part Schematics Acquired . | . . . . . . . Parts Built . | . . . . . . . Authchips . | . . . . . . . Time . | . . . . . . . Total Part Build Rating . | . . . . . . . Parts Repaired . | . . . . . . . Time . | . . . . . . . Parts Recycled . | . . . . . . . Recycled Matter . | . . . . . . . Retrieved Matter . | . . . . . . . Retrieved Components . | . . . . . . . Parts Scanalyzed . | . . . . . . . Part Schematics Acquired . | . . . . . . . Parts Damaged . | . . . . . . . Bothacking | -11 -10 -10 -9 -9 -9 -8 ------------ Run | Scr Mat Min Mat Min Exi Min Used RIF Installer . | . . . . . . . Robots Hacked 4 | . . . . . 4 . Non-combat 3 | . . . . . 3 . Combat 1 | . . . . . 1 . Robot Hacks Applied 4 | . . . . . 4 . parse_system 4 | . . . . . 4 . Relay Couplers Released . | . . . . . . . Fabnet Peak Effective % . | . . . . . . . Robots Rewired . | . . . . . . . Allies Hacked . | . . . . . . . Hacks Repelled . | . . . . . . . Allies | -11 -10 -10 -9 -9 -9 -8 -------- Run | Scr Mat Min Mat Min Exi Min Total Allies . | . . . . . . . Largest Group . | . . . . . . . Highest-Rated Group . | . . . . . . . Highest-Rated Ally . | . . . . . . . Total Orders . | . . . . . . . Ally Attacks 45 | . . . . . 44 1 Total Damage 2314 | . . . . . 2269 45 Kills 11 | . . . . . 11 . Allies Corrupted . | . . . . . . . Allies Melted . | . . . . . . . Turrets Deployed 4 | . . . . . 3 1 Intel | -11 -10 -10 -9 -9 -9 -8 ------- Run | Scr Mat Min Mat Min Exi Min Robot Analysis Total 1 | . 1 . . . . . Derelict Logs Recovered 1 | . . 1 . . . . Drone Launches . | . . . . . . . Drone Recoveries . | . . . . . . . Exploration | -11 -10 -10 -9 -9 -9 -8 ------------- Run | Scr Mat Min Mat Min Exi Min Turns Passed 7354 | . 1131 936 1134 207 3877 69 Spaces Moved 3081 | 1 571 535 416 83 1453 22 Core . | . . . . . . . Treads 2708 | . 199 535 416 83 1453 22 Legs 373 | 1 372 . . . . . Wheels . | . . . . . . . Hover . | . . . . . . . Flight . | . . . . . . . Fastest Speed 120 | 120 120 160 160 240 240 240 Average Speed 210 | 120 172 160 217 240 240 250 Slowest Speed 480 | 120 190 160 320 240 240 480 Overloaded Moves . | . . . . . . . Propulsion Burnouts . | . . . . . . . Robots Hopped . | . . . . . . . Cave-ins Triggered . | . . . . . . . Exploration Rate (%) 48 | 2 90 92 39 16 90 7 Regions Visited 6 Branch Regions 4 Pre-discovered Areas 1 | . . . . . 1 . Known Exits Taken 1 | . . . 1 . . . Unknown Exits Taken 5 | 1 1 1 . 1 1 . Scrap Searched 2 | . . 2 . . . . Spaces Dug 4 | . 4 . . . . . Terrain Destroyed 153 | . 48 34 71 . . . Melee . | . . . . . . . Projectile . | . . . . . . . AOE 153 | . 48 34 71 . . . Terrain Rammed . | . . . . . . . Walls Destroyed . | . . . . . . . Machines Disabled . | . . . . . . . Actions | -11 -10 -10 -9 -9 -9 -8 --------- Run | Scr Mat Min Mat Min Exi Min Total 3577 | . 668 578 547 93 1662 29 Wait 103 | . 30 11 8 . 53 1 Move 3075 | . 570 534 415 82 1452 22 Hop . | . . . . . . . Pick Up 48 | . 13 3 13 3 16 . Fast Attach 25 | . 8 1 12 . 4 . Attach 17 | . 1 2 2 1 10 1 Detach 2 | . 1 . 1 . . . Swap 43 | . 10 3 23 2 5 . Drop 42 | . 8 2 14 5 12 1 Fire 166 | . 25 22 59 . 56 4 Melee 17 | . . . . . 17 . Ram . | . . . . . . . Kick 1 | . 1 . . . . . Crush 38 | . 1 . . . 37 . Escape Stasis . | . . . . . . . Rewire . | . . . . . . . Trap . | . . . . . . . Miscellaneous . | . . . . . . . Route ------- -11/Scrapyard -10/Materials (discovered 4 exits: *Mat x3 / [*Min]) -10/Mines (discovered 2 exits: *Mat x2) -9/Materials (discovered 2 exits: [*Mat] / *Min) -9/Mines -9/Exiles (discovered 2 exits: [*Min x2]) -8/Mines History --------- Turn | Location | Event 1 | -11/Scrapyard | Discovered new exit (range 0) 1 | -11/Scrapyard | Entered Materials 313 | -10/Materials | Build established: Mutant 385 | -10/Materials | Discovered new exit (range 5) 646 | -10/Materials | Discovered new exit (range 6) 979 | -10/Materials | Discovered new exit (range 16) 1118 | -10/Materials | Discovered new exit (range 10) 1132 | -10/Materials | Entered Mines 1551 | -10/Mines | Learned Materials stockpile data 1554 | -10/Mines | Core integrity fell below 50% 1752 | -10/Mines | Discovered new exit (range 14) 1914 | -10/Mines | Discovered new exit (range 9) 2068 | -10/Mines | Entered Materials 2068 | -9/Materials | Evolved 2 slots: Propulsion x1, Utility x1 2476 | -9/Materials | Destroyed 10 combat bots 2478 | -9/Materials | Build established: Scavenger-Mutant 2600 | -9/Materials | Discovered new exit (range 15) 2632 | -9/Materials | Identified exit to Mines 3202 | -9/Materials | Entered Mines 3220 | -9/Mines | Met a Derelict who couldn't figure out how to use a Trap Extractor 3224 | -9/Mines | Met a Derelict bent on vengeance 3330 | -9/Mines | Deemed a non-threat by the Exiles lab entrance 3330 | -9/Mines | Discovered new exit (range 5) 3367 | -9/Mines | Assembled infested the area 3409 | -9/Mines | Entered Exiles 3441 | -9/Exiles | Discovered new exit (range 15) 3469 | -9/Exiles | Met 8R-AWN 3510 | -9/Exiles | Met EX-HEX 3599 | -9/Exiles | Met EX-BIN 3637 | -9/Exiles | Aligned with FarCom system 3640 | -9/Exiles | Given EX-Vault access code 3697 | -9/Exiles | Opened EX-Vault 3712 | -9/Exiles | Found Deploy-a-Sentry 3716 | -9/Exiles | Found Deploy-a-Sentry 3719 | -9/Exiles | Found Deploy-a-Sentry 3773 | -9/Exiles | Warned to stay clear of 0b10 Research branches 3843 | -9/Exiles | Met EX-DEC 3907 | -9/Exiles | DAS Turret deployed 3909 | -9/Exiles | DAS Turret deployed 3912 | -9/Exiles | DAS Turret deployed 4267 | -9/Exiles | Learned location of Zion (-6) 5374 | -9/Exiles | Attacked by the Exiles 5380 | -9/Exiles | Allies destroyed EX-DEC 5395 | -9/Exiles | Allies destroyed EX-HEX 5407 | -9/Exiles | Allies destroyed EX-BIN 5560 | -9/Exiles | Lost 4 parts (1n2u1w) 5643 | -9/Exiles | Lost 4 parts (1p3n) 5651 | -9/Exiles | Core integrity fell below 50% 5738 | -9/Exiles | Destroyed 8R-AWN 5746 | -9/Exiles | Lost 3 parts (2u1w) 5805 | -9/Exiles | Build established: Mutant 6401 | -9/Exiles | Found Superbattery 6404 | -9/Exiles | Found Supersonic Drone Bay 6699 | -9/Exiles | Found Deploy-a-Sentry 7254 | -9/Exiles | Discovered new exit (range 10) 7286 | -9/Exiles | Stole three prototypes: Superbattery, Supersonic Drone Bay, Deploy-a-Sentry 7286 | -9/Exiles | Entered Mines 7338 | -8/Mines | 1C-UTU came to Exiles' defense 7349 | -8/Mines | DAS Turret deployed 7349 | -8/Mines | Core integrity fell below 20% 7355 | -8/Mines | Destroyed by 1C-UTU with 1C-UTU's Sword "Choppy" Last Messages --------------- 07184_ Acquired 3 matter. 07189_ Acquired Mak. Terrain Scanner. 07254_ EXIT=FOUND A strange signal echoes through the mines. LOCATION=UNKNOWN GOAL=ESCAPE 07338_ 1C-UTU: "I came as fast as I could... Wait, it was you!" 07342_ 1C-UTU follow-up attacks with Prototype Slashing Weapon. 07343_ Lgt. Armor Plating destroyed. 07345_ Lgt. Treads destroyed. 07346_ 1C-UTU follow-up attacks with Prototype Slashing Weapon. 07347_ Lgt. Treads destroyed. 07348_ Imp. Ion Engine destroyed. 07348_ Dropped Deploy-a-Sentry. 07349_ DAS Turret deployed. 07349_ 1C-UTU knocked back. 07350_ DAS Turret suffers critical hit (Destroy). 07350_ DAS Turret destroyed. 07352_ Lgt. Treads destroyed. 07354_ Acquired 3 matter. Map ----- +----------------------------------------------------+ | ?????????????????????????????????????????????????? | | ?????????????????????????????????????????????????? | | ?????????????????????????????????????????????????? | | ?????????????????????????????????????????????????? | | ?????????????????????????????????????????????#???? | | ????????????????????????????????????????????? ???? | | ????????????????????????????????????????????? #??? | | ????????????????????????????????????????????? #??? | | ??????????????????????????????????????????### #??? | | ?????????????????????????????????????????? ##?? | | ?????????????????????????????????????????? ##? | | ?????????????????????????????????????????? #? | | ??????????????????????????????????????????# #? | | ??????????????????????????????????????????# #? | | ??????????????????????????????????????????# #? | | ??????????????????????????????????????????# #? | | ??????????????????????????????????????????# #?? | | ?????????????????????????????????????????## #??? | | ????????????????????????????????????????## ##?? | | ??????????????????????????????########### #?? | | ??????????????????????????????# #?? | | ??????????????????????????????# ########## #?? | | ??????????????????????????????# #????????## #?? | | ??????????????????????????????# #?????????## ##?? | | ????????????????# ############# #??????????####??? | | ????????????????# k @l % #????????????????? | | ?????? ###############????????????????? | | ?????????????????????????????????????????????????? | | ?????????????????????????????????????????????????? | | ?????????????????????????????????????????????????? | | ?????????????????????????????????????????????????? | | | | | | | | | | | | | | | | | | | | | | | | | | | | | | | | | | | | | | | +----------------------------------------------------+ Best States ------------- Heat Dissipation 28 Energy Generation 12 Energy Capacity 265 Matter Stores 300 Matter Capacity 300 Sight Range 16 Terrain Scan Density 10 Armor Coverage 150 Evasion (%) 55 Targeting Accuracy 5 Recoil Reduction 3 Item Schematics ----------------- None Robot Schematics ------------------ None Fabricated ------------ Nothing Alien Tech Used ----------------- None Achievements -------------- None Challenges ------------ None Game ------ Seed BehemothScatterVibroblade Manual? 0 Play Time 00:28:46 Cumulative 341.3 hours Start 2022.05.13 @ 16:25:29 End 2022.05.13 @ 16:54:28 Sessions 1 Manual Loads 0 Difficulty Rogue Special Mode None Game No. 375 Rogue 375 Adventurer 0 Explorer 0 Win Type - Total 28 Types 17/3/2/1/2/0/3/0/0 Lore% 88 Gallery% 86 Achievement% 80 Wizard Run 0 Options --------- ASCII 0 Keyboard 0 Movement Arrows Keybinds 0 Fullscreen 2 Font 18/SmallcapsGlow Map View 76x50 Tactical HUD 1 Map Filters NONE Filters NONE Steam 1 RUN: d4ed782b-f885-4f5b-a600-b899f5f7e400